fUST/lending_fUST_20250112
["ID","MTS","AMOUNT","RATE_DAILY","PERIOD"]
[348579436,1736633449146,-500.0,0.00022191,3]
[348579438,1736633449156,-500.0,0.00022191,3]
[348579440,1736633449165,-500.0,0.00022191,3]
[348579443,1736633449176,-735.94,0.00022191,3]
[348579444,1736633449185,-500.0,0.00022191,3]
[348579446,1736633449195,-500.0,0.00022191,3]
[348579448,1736633449204,-500.0,0.00022191,3]
[348579450,1736633449213,-500.0,0.00022191,3]
[348579452,1736633449224,-500.0,0.00022191,3]
[348579455,1736633449233,-484.49126719,0.00022191,3]
[348579456,1736633449243,-11502.46,0.00022191,2]
[348579458,1736633449252,-819.06,0.00022191,3]
[348579460,1736633449262,-1533.31,0.00022191,3]
[348579462,1736633449271,-500.0,0.00022191,3]
[348579464,1736633449281,-500.0,0.00022191,3]
[348579466,1736633449291,-2216.01,0.00022191,3]
[348579468,1736633449300,-500.0,0.00022191,3]
[348579470,1736633449309,-500.0,0.00022191,3]
[348579472,1736633449319,-609.53,0.00022191,3]
[348579475,1736633449329,-500.0,0.00022191,3]
[348579477,1736633449339,-500.0,0.00022191,3]
[348579478,1736633449348,-647.68,0.00022191,3]
[348579480,1736633449357,-500.0,0.00022191,3]
[348579482,1736633449366,-500.0,0.00022191,3]
[348579484,1736633449376,-538.05,0.00022191,3]
[348579486,1736633449386,-500.0,0.00022191,3]
[348579488,1736633449395,-573.99445169,0.00022191,3]
[348579490,1736633449404,-500.0,0.00022191,3]
[348579492,1736633449414,-1360.09,0.00022191,3]
[348579494,1736633449426,-151.0,0.00022191,7]
[348579496,1736633449436,-151.0,0.00022191,7]
[348579498,1736633449445,-151.0,0.00022191,7]
[348579500,1736633449456,-500.0,0.00022191,3]
[348579503,1736633449465,-810.57,0.00022191,3]
[348579504,1736633449475,-500.0,0.00022191,3]
[348579506,1736633449484,-1875.75,0.00022191,3]
[348579508,1736633449493,-500.0,0.00022191,3]
[348579510,1736633449503,-500.0,0.00022191,3]
[348579512,1736633449512,-604.78,0.00022191,3]
[348579514,1736633449521,-500.0,0.00022191,3]
[348579516,1736633449530,-573.33276,0.00022191,7]
[348579518,1736633449540,-573.33276,0.00022191,7]
[348579520,1736633449549,-500.0,0.00022191,3]
[348579522,1736633449559,-573.33276,0.00022191,7]
[348579524,1736633449568,-573.33276,0.00022191,7]
[348579526,1736633449578,-500.0,0.00022191,3]
[348579528,1736633449587,-500.0,0.00022191,3]
[348579530,1736633449596,-500.0,0.00022191,3]
[348579532,1736633449612,-500.0,0.00022191,3]
[348579534,1736633449622,-500.0,0.00022191,3]
[348579536,1736633449632,-505.60751182,0.00022191,3]
[348579538,1736633449643,-500.0,0.00022191,3]
[348579540,1736633449652,-500.0,0.00022191,3]
[348579542,1736633449662,-500.0,0.00022191,3]
[348579544,1736633449671,-1453.0,0.00022191,3]
[348579546,1736633449682,-500.0,0.00022191,3]
[348579548,1736633449691,-1417.5,0.00022191,3]
[348579550,1736633449700,-500.0,0.00022191,3]
[348579552,1736633449710,-19993.78,0.00022191,3]
[348579554,1736633449720,-500.0,0.00022191,3]
[348579556,1736633449730,-2618.43,0.00022191,3]
[348579558,1736633449739,-152.91716817,0.00022191,3]
[348579560,1736633449749,-1526.81,0.00022191,3]
[348579562,1736633449759,-500.0,0.00022191,3]
[348579564,1736633449769,-628.91,0.00022191,3]
[348579566,1736633449778,-789.03,0.00022191,3]
[348579568,1736633449787,-672.9,0.00022191,3]
[348579570,1736633449796,-1856.63,0.00022191,3]
[348579572,1736633449806,-500.0,0.00022191,3]
[348579574,1736633449815,-500.0,0.00022191,3]
[348579576,1736633449824,-575.15,0.00022191,3]
[348579578,1736633449834,-832.9,0.00022191,3]
[348579580,1736633449843,-500.0,0.00022191,3]
[348579582,1736633449852,-500.0,0.00022191,3]
[348579584,1736633449862,-500.0,0.00022191,3]
[348579586,1736633449871,-785.15,0.00022191,3]
[348579588,1736633449881,-500.0,0.00022191,3]
[348579590,1736633449891,-890.75,0.000222,2]
[348579592,1736633449900,-619.0,0.000222,2]
[348579593,1736633449909,-160.527653,0.00022218,2]
[348579595,1736633449919,-150.0,0.00022234,2]
[348579597,1736633449928,-535.0,0.00022234,2]
[348579599,1736633449938,-2075.0,0.00022234,2]
[348579601,1736633449947,-2315.0,0.00022234,2]
[348579603,1736633449956,-151.0,0.00022319,7]
[348579605,1736633449965,-500.0,0.00022327,2]
[348579607,1736633449974,-160.527653,0.00022452,2]
[348579609,1736633449983,-898.51,0.00022462,3]
[348579611,1736633449992,-151.0,0.00022463,7]
[348579613,1736633450002,-151.0,0.00022463,7]
[348579615,1736633450011,-160.0,0.00022464,2]
[348579617,1736633450020,-500.0,0.00022464,2]
[348579619,1736633450029,-898.51,0.00022464,3]
[348579621,1736633450039,-898.51,0.00022464,3]
[348579623,1736633450048,-898.51,0.00022464,3]
[348579625,1736633450058,-898.51,0.00022464,3]
[348579627,1736633450067,-168.2925,0.00022465,5]
[348579629,1736633450076,-151.0,0.00022465,7]
[348579631,1736633450086,-152.020225,0.00022465,7]
[348579633,1736633450095,-500.0,0.00022465,3]
[348579635,1736633450104,-585.23294069,0.00022465,3]
[348579637,1736633450113,-500.0,0.00022465,3]
[348579639,1736633450123,-711.79,0.00022465,3]
[348579641,1736633450132,-500.0,0.00022465,3]
[348579643,1736633450141,-602.84,0.00022465,3]
[348579645,1736633450150,-500.0,0.00022465,3]
[348579647,1736633450160,-151.0,0.00022465,7]
[348579649,1736633450169,-151.0,0.00022465,7]
[348579651,1736633450179,-500.0,0.00022465,3]
[348579653,1736633450188,-152.999238,0.00022465,7]
[348579654,1736633450196,-156.975903,0.00022465,7]
[348579656,1736633450206,-500.0,0.00022465,3]
[348579658,1736633450215,-151.0,0.00022465,2]
[348579660,1736633450226,-151.0,0.00022465,2]
[348579662,1736633450235,-500.0,0.00022465,3]
[348579664,1736633450244,-166.10459683,0.00022465,3]
[348579666,1736633450253,-500.0,0.00022465,3]
[348579668,1736633450262,-4618.34,0.00022465,3]
[348579670,1736633450272,-4743.65,0.00022465,3]
[348579672,1736633450281,-500.0,0.00022465,3]
[348579674,1736633450291,-300.817269,0.00022465,7]
[348579676,1736633450300,-425.67,0.00022465,3]
[348579678,1736633450309,-500.0,0.00022465,3]
[348579680,1736633450319,-879.41,0.00022465,3]
[348579682,1736633450328,-500.0,0.00022465,7]
[348579684,1736633450337,-150.24,0.00022465,7]
[348579686,1736633450346,-502.01,0.00022465,3]
[348579688,1736633450356,-735.94,0.00022465,3]
[348579690,1736633450366,-500.0,0.00022465,3]
[348579692,1736633450375,-11502.46,0.00022465,2]
[348579694,1736633450384,-819.06,0.00022465,3]
[348579696,1736633450393,-1533.31,0.00022465,3]
[348579698,1736633450402,-2216.01,0.00022465,3]
[348579700,1736633450411,-500.0,0.00022465,3]
[348579702,1736633450421,-609.53,0.00022465,3]
[348579704,1736633450431,-500.0,0.00022465,3]
[348579706,1736633450441,-150.24,0.00022465,2]
[348579708,1736633450450,-647.68,0.00022465,3]
[348579710,1736633450459,-228.36,0.00022465,3]
[348579712,1736633450468,-500.0,0.00022465,3]
[348579714,1736633450478,-500.0,0.00022465,3]
[348579716,1736633450487,-500.0,0.00022465,3]
[348579718,1736633450497,-1360.09,0.00022465,3]
[348579720,1736633450506,-151.0,0.00022465,7]
[348579722,1736633450516,-151.0,0.00022465,7]
[348579724,1736633450526,-810.57,0.00022465,3]
[348579726,1736633450535,-1875.75,0.00022465,3]
[348579728,1736633450544,-500.0,0.00022465,3]
[348579729,1736633450553,-500.0,0.00022465,3]
[348579731,1736633450563,-604.78,0.00022465,3]
[348579734,1736633450575,-573.33276,0.00022465,7]
[348579736,1736633450585,-573.33276,0.00022465,7]
[348579737,1736633450594,-573.33276,0.00022465,7]
[348579739,1736633450605,-573.33276,0.00022465,7]
[348579741,1736633450619,-203.93964182,0.00022465,3]
[348579743,1736633450629,-500.0,0.00022465,3]
[348579745,1736633450640,-500.0,0.00022465,3]
[348579748,1736633450651,-500.0,0.00022465,3]
[348579749,1736633450660,-500.0,0.00022465,3]
[348579751,1736633450670,-448.60187306,0.00022465,3]
[348579753,1736633450681,-1453.0,0.00022465,3]
[348579755,1736633450691,-500.0,0.00022465,3]
[348579757,1736633450701,-1417.5,0.00022465,3]
[348579759,1736633450711,-500.0,0.00022465,3]
[348579761,1736633450721,-19993.78,0.00022465,3]
[348579763,1736633450730,-500.0,0.00022465,3]
[348579765,1736633450739,-2618.43,0.00022465,3]
[348579767,1736633450749,-1526.81,0.00022465,3]
[348579769,1736633450759,-500.0,0.00022465,3]
[348579771,1736633450769,-628.91,0.00022465,3]
[348579773,1736633450778,-789.03,0.00022465,3]
[348579775,1736633450788,-672.9,0.00022465,3]
[348579777,1736633450797,-1856.63,0.00022465,3]
[348579779,1736633450806,-500.0,0.00022465,3]
[348579780,1736633450815,-832.9,0.00022465,3]
[348579781,1736633450824,-500.0,0.00022465,3]
[348579782,1736633450834,-500.0,0.00022465,3]
[348579783,1736633450843,-785.15,0.00022465,3]
[348579784,1736633450852,-500.0,0.00022465,3]
[348579785,1736633450861,-500.0,0.000225,9]
[348579786,1736633450871,-173.34522226,0.0002262,2]
[348579787,1736633450879,-1200.0,0.00022627,2]
[348579788,1736633450889,-3000.0,0.00022639,2]
[348579789,1736633450898,-160.527653,0.00022687,2]
[348579790,1736633450907,-600.0,0.00022719,2]
[348579791,1736633450917,-898.51,0.0002272,3]
[348579795,1736633451023,-1000.0,0.00022721,2]
[348579797,1736633451034,-898.51,0.00022738,3]
[348579799,1736633451044,-898.51,0.00022738,3]
[348579801,1736633451054,-898.51,0.00022738,3]
[348579803,1736633451064,-898.51,0.00022738,3]
[348579806,1736633451073,-500.0,0.00022739,7]
[348579808,1736633451083,-500.0,0.00022739,3]
[348579809,1736633451092,-500.0,0.00022739,3]
[348579811,1736633451101,-711.79,0.00022739,3]
[348579813,1736633451111,-500.0,0.00022739,3]
[348579816,1736633451120,-602.84,0.00022739,3]
[348579817,1736633451129,-500.0,0.00022739,3]
[348579819,1736633451139,-151.0,0.00022739,7]
[348579821,1736633451148,-151.0,0.00022739,7]
[348579823,1736633451158,-500.0,0.00022739,3]
[348579825,1736633451167,-500.0,0.00022739,3]
[348579827,1736633451176,-236.224796,0.00022739,2]
[348579829,1736633451185,-500.0,0.00022739,3]
[348579831,1736633451195,-500.0,0.00022739,3]
[348579833,1736633451204,-4618.34,0.00022739,3]
[348579835,1736633451214,-4743.65,0.00022739,3]
[348579837,1736633451223,-500.0,0.00022739,3]
[348579839,1736633451232,-879.41,0.00022739,3]
[348579841,1736633451242,-735.94,0.00022739,3]
[348579843,1736633451252,-11502.46,0.00022739,2]
[348579845,1736633451261,-819.06,0.00022739,3]
[348579847,1736633451270,-1533.31,0.00022739,3]
[348579849,1736633451279,-2216.01,0.00022739,3]
[348579851,1736633451289,-500.0,0.00022739,3]
[348579853,1736633451298,-609.53,0.00022739,3]
[348579855,1736633451308,-500.0,0.00022739,3]
[348579857,1736633451317,-647.68,0.00022739,3]
[348579859,1736633451327,-500.0,0.00022739,3]
[348579861,1736633451336,-500.0,0.00022739,3]
[348579863,1736633451345,-1360.09,0.00022739,3]
[348579865,1736633451355,-151.0,0.00022739,7]
[348579867,1736633451364,-161.63536,0.00022739,7]
[348579869,1736633451374,-810.57,0.00022739,3]
[348579871,1736633451383,-1875.75,0.00022739,3]
[348579873,1736633451393,-500.0,0.00022739,3]
[348579875,1736633451402,-500.0,0.00022739,3]
[348579877,1736633451411,-604.78,0.00022739,3]
[348579879,1736633451421,-573.33276,0.00022739,7]
[348579881,1736633451430,-573.33276,0.00022739,7]
[348579883,1736633451439,-500.0,0.00022739,3]
[348579885,1736633451449,-500.0,0.00022739,3]
[348579887,1736633451459,-500.0,0.00022739,3]
[348579889,1736633451469,-1453.0,0.00022739,3]
[348579891,1736633451478,-1417.5,0.00022739,3]
[348579893,1736633451488,-500.0,0.00022739,3]
[348579895,1736633451497,-19993.78,0.00022739,3]
[348579897,1736633451506,-2618.43,0.00022739,3]
[348579899,1736633451516,-1526.81,0.00022739,3]
[348579901,1736633451526,-500.0,0.00022739,3]
[348579903,1736633451535,-789.03,0.00022739,3]
[348579905,1736633451545,-628.91,0.00022739,3]
[348579907,1736633451554,-672.9,0.00022739,3]
[348579909,1736633451564,-1856.63,0.00022739,3]
[348579911,1736633451574,-616.96607701,0.00022739,3]
[348579913,1736633451584,-832.9,0.00022739,3]
[348579915,1736633451593,-500.0,0.00022739,3]
[348579917,1736633451603,-500.0,0.00022739,3]
[348579919,1736633451618,-785.15,0.00022739,3]
[348579921,1736633451627,-1149.29914031,0.00022831,2]
[348579923,1736633451636,-160.527653,0.00022922,2]
[348579924,1736633451647,-1998.30831694,0.00023,2]
[348579926,1736633451656,-573.33276,0.00023,7]
[348579928,1736633451666,-573.33276,0.00023,7]
[348579930,1736633451676,-898.51,0.00023012,3]
[348579932,1736633451687,-898.51,0.00023012,3]
[348579935,1736633451698,-898.51,0.00023012,3]
[348579937,1736633451709,-898.51,0.00023012,3]
[348579939,1736633451719,-898.51,0.00023012,3]
[348579941,1736633451729,-898.66735862,0.00023012,3]
[348579943,1736633451738,-500.0,0.00023013,7]
[348579945,1736633451748,-500.0,0.00023013,3]
[348579947,1736633451757,-711.79,0.00023013,3]
[348579949,1736633451767,-500.0,0.00023013,3]
[348579951,1736633451777,-602.84,0.00023013,3]
[348579953,1736633451787,-500.0,0.00023013,3]
[348579955,1736633451796,-151.0,0.00023013,7]
[348579957,1736633451805,-355.83536237,0.00023013,3]
[348579959,1736633451815,-500.0,0.00023013,3]
[348579961,1736633451824,-500.0,0.00023013,3]
[348579963,1736633451833,-4618.34,0.00023013,3]
[348579965,1736633451843,-500.0,0.00023013,3]
[348579967,1736633451852,-4743.65,0.00023013,3]
[348579969,1736633451862,-879.41,0.00023013,3]
[348579971,1736633451871,-735.94,0.00023013,3]
[348579973,1736633451881,-11502.46,0.00023013,2]
[348579975,1736633451890,-819.06,0.00023013,3]
[348579977,1736633451900,-1533.31,0.00023013,3]
[348579979,1736633451910,-2216.01,0.00023013,3]
[348579981,1736633451919,-500.0,0.00023013,3]
[348579983,1736633451929,-609.53,0.00023013,3]
[348579985,1736633451941,-500.0,0.00023013,3]
[348579987,1736633451950,-647.68,0.00023013,3]
[348579989,1736633451960,-500.0,0.00023013,3]
[348579991,1736633451969,-1360.09,0.00023013,3]
[348579993,1736633451979,-810.57,0.00023013,3]
[348579995,1736633451990,-1875.75,0.00023013,3]
[348579997,1736633452000,-500.0,0.00023013,3]
[348579999,1736633452010,-561.21,0.00023013,3]
[348580001,1736633452020,-604.78,0.00023013,3]
[348580003,1736633452030,-573.33276,0.00023013,7]
[348580005,1736633452040,-573.33276,0.00023013,7]
[348580007,1736633452051,-500.0,0.00023013,3]
[348580010,1736633452061,-500.0,0.00023013,3]
[348580011,1736633452071,-500.0,0.00023013,3]
[348580014,1736633452080,-1453.0,0.00023013,3]
[348580016,1736633452090,-1417.5,0.00023013,3]
[348580017,1736633452099,-500.0,0.00023013,3]
[348580019,1736633452109,-19993.78,0.00023013,3]
[348580021,1736633452118,-2618.43,0.00023013,3]
[348580023,1736633452128,-1526.81,0.00023013,3]
[348580026,1736633452137,-615.88560798,0.00023013,3]
[348580027,1736633452146,-789.03,0.00023013,3]
[348580029,1736633452156,-628.91,0.00023013,3]
[348580032,1736633452165,-672.9,0.00023013,3]
[348580034,1736633452176,-1856.63,0.00023013,3]
[348580036,1736633452193,-832.9,0.00023013,3]
[348580038,1736633452202,-500.0,0.00023013,3]
[348580040,1736633452212,-500.0,0.00023013,3]
[348580042,1736633452221,-785.15,0.00023013,3]
[348580044,1736633452231,-1149.29914031,0.00023084,2]
[348580046,1736633452240,-2000.0,0.000231,2]
[348580048,1736633452249,-2000.0,0.000231,2]
[348580050,1736633452259,-160.527653,0.00023157,2]
[348580052,1736633452269,-626.3659285,0.00023185,11]
[348580054,1736633452278,-618.2,0.000232,2]
[348580055,1736633452287,-420.0,0.00023279,2]
[348580057,1736633452295,-500.0,0.00023287,7]
[348580059,1736633452303,-500.0,0.00023287,3]
[348580061,1736633452312,-711.79,0.00023287,3]
[348580063,1736633452322,-500.0,0.00023287,3]
[348580065,1736633452332,-602.84,0.00023287,3]
[348580067,1736633452341,-500.0,0.00023287,3]
[348580069,1736633452350,-151.0,0.00023287,7]
[348580071,1736633452359,-151.0,0.00023287,7]
[348580073,1736633452369,-500.0,0.00023287,3]
[348580075,1736633452378,-500.0,0.00023287,3]
[348580077,1736633452387,-4618.34,0.00023287,3]
[348580079,1736633452397,-500.0,0.00023287,3]
[348580081,1736633452406,-4743.65,0.00023287,3]
[348580083,1736633452416,-879.41,0.00023287,3]
[348580085,1736633452425,-735.94,0.00023287,3]
[348580087,1736633452438,-11502.46,0.00023287,2]
[348580089,1736633452447,-819.06,0.00023287,3]
[348580091,1736633452457,-1533.31,0.00023287,3]
[348580093,1736633452467,-2216.01,0.00023287,3]
[348580095,1736633452476,-500.0,0.00023287,3]
[348580097,1736633452486,-609.53,0.00023287,3]
[348580099,1736633452496,-500.0,0.00023287,3]
[348580101,1736633452506,-647.68,0.00023287,3]
[348580103,1736633452516,-500.0,0.00023287,3]
[348580105,1736633452526,-25.5856244,0.00023287,3]
[348580109,1736633452547,-626.48507443,0.00023287,3]
[348580111,1736633452559,-708.01930117,0.00023287,3]
[348580113,1736633452568,-810.57,0.00023287,3]
[348580115,1736633452578,-1875.75,0.00023287,3]
[348580117,1736633452587,-500.0,0.00023287,3]
[348580119,1736633452597,-604.78,0.00023287,3]
[348580121,1736633452607,-573.33276,0.00023287,7]
[348580123,1736633452624,-573.33276,0.00023287,7]
[348580125,1736633452634,-573.33276,0.00023287,7]
[348580127,1736633452644,-573.332762,0.00023287,7]
[348580129,1736633452655,-448.54749464,0.00023287,3]
[348580131,1736633452665,-500.0,0.00023287,3]
[348580133,1736633452675,-1453.0,0.00023287,3]
[348580135,1736633452687,-1417.5,0.00023287,3]
[348580137,1736633452697,-500.0,0.00023287,3]
[348580139,1736633452707,-19993.78,0.00023287,3]
[348580141,1736633452716,-1526.81,0.00023287,3]
[348580143,1736633452726,-789.03,0.00023287,3]
[348580145,1736633452735,-628.91,0.00023287,3]
[348580147,1736633452745,-672.9,0.00023287,3]
[348580149,1736633452754,-1856.63,0.00023287,3]
[348580151,1736633452764,-832.9,0.00023287,3]
[348580153,1736633452775,-48.59461859,0.00023287,3]
[348580156,1736633452792,-451.40538141,0.00023287,3]
[348580158,1736633452801,-500.0,0.00023287,3]
[348580160,1736633452811,-785.15,0.00023287,3]
[348580162,1736633452820,-153.91,0.000233,31]
[348580164,1736633452830,-153.91,0.000233,31]
[348580166,1736633452839,-153.91,0.000233,31]
[348580167,1736633452849,-153.91,0.000233,31]
[348580169,1736633452858,-153.91,0.000233,31]
[348580171,1736633452868,-153.91,0.000233,31]
[348580173,1736633452877,-153.91,0.000233,31]
[348580175,1736633452887,-5410.0,0.00023328,7]
[348580177,1736633452896,-160.0,0.00023332,3]
[348580179,1736633452906,-160.0,0.00023332,5]
[348580181,1736633452916,-1149.29914031,0.00023338,2]
[348580183,1736633452926,-160.527653,0.00023392,2]
[348580185,1736633452937,-3000.0,0.00023461,2]
[348580187,1736633452947,-500.0,0.00023561,7]
[348580189,1736633452956,-500.0,0.00023561,3]
[348580191,1736633452966,-711.79,0.00023561,3]
[348580193,1736633452976,-294.76,0.00023561,3]
[348580195,1736633452986,-602.84,0.00023561,3]
[348580197,1736633452995,-500.0,0.00023561,3]
[348580199,1736633453005,-151.0,0.00023561,7]
[348580201,1736633453015,-500.0,0.00023561,3]
[348580203,1736633453024,-486.56739279,0.00023561,3]
[348580205,1736633453034,-4618.34,0.00023561,3]
[348580207,1736633453043,-500.0,0.00023561,3]
[348580209,1736633453052,-12.52894053,0.00023561,3]
[348580244,1736633613087,162.230004,0.00013973,2]
[348580245,1736634358118,-2976.50436764,0.00019653,2]
[348580246,1736634358139,-436.8214384,0.00019753,2]
[348580247,1736634442115,-393.80362484,0.000189,2]
[348580248,1736634442136,-63.1785616,0.00019753,2]
[348580249,1736634442158,-300.0,0.00019999,2]
[348580250,1736634442182,-3656.03411553,0.0002,5]
[348580254,1736634497293,417.54675398,0.000125,2]
[348580262,1736634550112,-420.2090246,0.00019177,4]
[348580263,1736634550143,-73.28869619,0.00019177,4]
[348580264,1736634559204,170.635068,0.00013973,2]
[348580350,1736634632890,-300.0,0.00019899,2]
[348580352,1736634632899,-13.85775355,0.000199,2]
[348580354,1736634632911,-4483.06570357,0.000199,2]
[348580356,1736634632920,-500.0,0.00019973,2]
[348580358,1736634632929,-513.77721426,0.00019999,2]
[348580360,1736634632939,-168.2925,0.0002,5]
[348580362,1736634632948,-9893.26462087,0.0002,5]
[348580464,1736634638684,-17356.95599262,0.0002,5]
[348580465,1736634638701,-6450.72851847,0.0002,5]
[348580466,1736634638714,-947.84,0.0002,5]
[348580467,1736634638727,-35949.27271357,0.0002,5]
[348580468,1736634638740,-10969.271389,0.0002,5]
[348580469,1736634638751,-3966.36441773,0.0002,5]
[348580470,1736634638764,-221182.61687674,0.0002,5]
[348580471,1736634638775,-6460.0,0.0002,5]
[348580472,1736634638787,-862.04420907,0.0002,5]
[348580473,1736634638798,-1016.94,0.0002,5]
[348580487,1736634640740,-1363.14015772,0.0002,5]
[348580488,1736634640753,-502.89526421,0.0002,5]
[348580489,1736634640824,-420.87043536,0.0002,5]
[348580490,1736634640840,-1000.0,0.0002,5]
[348580521,1736634643664,-1373.3249935,0.0002,5]
[348580522,1736634643680,-14530.49618628,0.0002,5]
[348580523,1736634643693,-804.82261135,0.0002,5]
[348580524,1736634643704,-601.63635246,0.0002,5]
[348580525,1736634643716,-1148.4465268,0.0002,5]
[348580526,1736634643728,-2789.71202009,0.0002,5]
[348580527,1736634643773,-8726.86210149,0.0002,5]
[348580541,1736634681934,203.70325749,0.000189,2]
[348580543,1736634793311,-58.83249241,0.000189,2]
[348580544,1736634825374,-187.7468061,0.00019184,2]
[348580550,1736635426469,170.336001,0.00013973,2]
[348580551,1736635454841,500.01,0.00025,120]
[348580552,1736635540126,-714.76965605,0.000189,2]
[348580553,1736635540147,-302.63687509,0.00019088,2]
[348580554,1736635540169,-164.1362664,0.00019178,2]
[348580555,1736635540191,-302.63687509,0.00019279,2]
[348580556,1736635540212,-111.96786074,0.0001947,2]
[348580557,1736635549087,-190.66901435,0.0001947,2]
[348580558,1736635549107,-334.00583479,0.00019661,2]
[348580559,1736635549127,-611.22073769,0.00019837,2]
[348580560,1736635549148,-1156.08787829,0.000199,2]
[348580561,1736635549168,-280.31083057,0.000199,2]
[348580562,1736635549189,-300.0,0.00019972,2]
[348580563,1736635549211,-849.10610316,0.00019972,2]
[348580564,1736635630100,-669.23114833,0.000189,2]
[348580565,1736635630125,-1008.0,0.00019972,2]
[348580566,1736635630147,-300.0,0.00019972,2]
[348580567,1736635630168,-23.02054263,0.00019973,2]
[348580568,1736635651411,-232.31385831,0.00019973,2]
[348580620,1736635831928,-525.91757582,0.00019827,2]
[348580622,1736635831940,-979.67286512,0.00019827,2]
[348580631,1736635832012,-25.95100321,0.00019827,2]
[348580638,1736635832076,-9546.521724,0.00019827,2]
[348580640,1736635832086,-300.0,0.00019868,2]
[348580642,1736635832095,-1011.57689353,0.000199,2]
[348580644,1736635832105,-244.66559906,0.00019973,2]
[348580646,1736635832114,-500.0,0.00019973,2]
[348580649,1736635832123,-169.0,0.00019973,2]
[348580651,1736635832132,-500.0,0.00019973,2]
[348580655,1736635832142,-500.0,0.00019973,2]
[348580658,1736635832151,-154.94,0.00019999,2]
[348580661,1736635832160,-160.0,0.00019999,2]
[348580664,1736635832170,-208.197,0.00019999,2]
[348580667,1736635832179,-163.14484928,0.00019999,2]
[348580670,1736635832189,-227.17104749,0.00019999,2]
[348580673,1736635832198,-464.20474348,0.00019999,2]
[348580676,1736635832207,-300.14790039,0.00019999,2]
[348580679,1736635832216,-500.0,0.00019999,2]
[348580682,1736635832225,-266.20364078,0.00019999,2]
[348580684,1736635832234,-500.0,0.00019999,2]
[348580686,1736635832243,-308.13161401,0.00019999,2]
[348580688,1736635832253,-546.74835334,0.00019999,2]
[348580690,1736635832262,-500.0,0.00019999,2]
[348580692,1736635832271,-500.0,0.00019999,2]
[348580694,1736635832280,-435.72514006,0.00019999,2]
[348580696,1736635832289,-500.0,0.00019999,2]
[348580698,1736635832299,-500.0,0.00019999,2]
[348580700,1736635832309,-443.53053565,0.00019999,2]
[348580702,1736635832319,-261.11481262,0.00019999,2]
[348580704,1736635832328,-500.0,0.00019999,2]
[348580706,1736635832337,-1249788.97547162,0.0002,5]
[348581227,1736635837734,-252.27974745,0.000199,2]
[348581229,1736635837743,-1251.20553819,0.0002,5]
[348581232,1736635837757,-1256.34000017,0.0002,5]
[348581243,1736635837861,-265.36662593,0.0002,5]
[348581246,1736635837873,-19623.85429045,0.0002,5]
[348581248,1736635837888,-16121.51000005,0.0002,5]
[348581250,1736635837900,-1659.42452315,0.0002,5]
[348581592,1736635842787,-255.84500219,0.0002,5]
[348581593,1736635842799,-2553.51259122,0.0002,5]
[348581595,1736635842813,-302.23434211,0.0002,5]
[348581596,1736635842840,-472.30979395,0.0002,5]
[348581618,1736635845856,-546942.67470676,0.0002,5]
[348581620,1736635845868,-552.00334675,0.0002,5]
[348581622,1736635845883,-426.554,0.0002,5]